[Event "Titled Tuesday Blitz December 20 Early 2022"]
[White "Abasov, Nijat"]
[Black "Sovetov, Oleksandr"]
[WhiteFideId "13402960"]
[BlackFideId "34105786"]
[WhiteElo "2634"]
[BlackElo "1976"]
[Result "1-0"]
[Round "01"]
[TimeControl "180+2"]
[Date "2022.12.20"]
[WhiteClock "0:01:36"]
[BlackClock "0:01:15"]

1. d4 {[%clk 0:03:00]}  Nf6 {[%clk 0:02:59]} 2. Nf3 {[%clk 0:03:01]}  g6 {[%clk 0:02:55]} 3. Nbd2 {[%clk 0:03:00]}  d5 {[%clk 0:02:53]} 4. b4 {[%clk 0:02:59]}  a5 {[%clk 0:02:45]} 5. b5 {[%clk 0:02:59]}  a4 {[%clk 0:02:46]} 6. c4 {[%clk 0:02:59]}  c6 {[%clk 0:02:44]} 7. e3 {[%clk 0:02:59]}  Bg7 {[%clk 0:02:44]} 8. Ba3 {[%clk 0:02:59]}  cxb5 {[%clk 0:02:37]} 9. cxb5 {[%clk 0:02:55]}  O-O {[%clk 0:02:34]} 10. Bd3 {[%clk 0:02:54]}  Nbd7 {[%clk 0:02:33]} 11. O-O {[%clk 0:02:54]}  Nb6 {[%clk 0:02:33]} 12. Ne5 {[%clk 0:02:52]}  Bf5 {[%clk 0:02:33]} 13. Bxf5 {[%clk 0:02:49]}  gxf5 {[%clk 0:02:34]} 14. Rc1 {[%clk 0:02:46]}  Re8 {[%clk 0:02:28]} 15. Qe2 {[%clk 0:02:25]}  e6 {[%clk 0:02:24]} 16. Rc2 {[%clk 0:02:24]}  Ne4 {[%clk 0:02:22]} 17. Rfc1 {[%clk 0:02:24]}  Nxd2 {[%clk 0:02:18]} 18. Qxd2 {[%clk 0:02:25]}  Bxe5 {[%clk 0:02:17]} 19. dxe5 {[%clk 0:02:26]}  Nc4 {[%clk 0:02:17]} 20. Qc3 {[%clk 0:01:55]}  Qa5 {[%clk 0:02:14]} 21. Bb4 {[%clk 0:01:39]}  Qxb5 {[%clk 0:02:13]} 22. a3 {[%clk 0:01:40]}  Rac8 {[%clk 0:02:04]} 23. Qd4 {[%clk 0:01:40]}  Qb6 {[%clk 0:01:54]} 24. Rxc4 {[%clk 0:01:40]}  Qxd4 {[%clk 0:01:23]} 25. Rxc8 {[%clk 0:01:39]}  Qb2 {[%clk 0:01:18]} 26. Rxe8+ {[%clk 0:01:38]}  Kg7 {[%clk 0:01:19]} 27. Rec8 {[%clk 0:01:38]}  f4 {[%clk 0:01:17]} 28. exf4 {[%clk 0:01:38]}  Kg6 {[%clk 0:01:16]} 29. g4 {[%clk 0:01:37]}  Qe2 {[%clk 0:01:15]} 30. Rg8+ {[%clk 0:01:35]}  Kh6 {[%clk 0:01:15]} 31. Bf8# {[%clk 0:01:36]} 1-0


[Site "https://www.chess.com"]

[Event "Titled Tuesday Blitz December 20 Early 2022"]
[White "Albano, Marco"]
[Black "Sadykov_Ramil"]
[WhiteFideId "801178"]
[WhiteElo "2291"]
[BlackElo "2546"]
[Result "0-1"]
[Round "01"]
[TimeControl "180+2"]
[Date "2022.12.20"]
[WhiteClock "0:01:12"]
[BlackClock "0:01:32"]

1. e4 {[%clk 0:03:00]}  c5 {[%clk 0:02:56]} 2. Nf3 {[%clk 0:03:00]}  Nc6 {[%clk 0:02:54]} 3. d4 {[%clk 0:03:00]}  cxd4 {[%clk 0:02:53]} 4. Nxd4 {[%clk 0:03:01]}  Nf6 {[%clk 0:02:52]} 5. Nc3 {[%clk 0:03:01]}  d6 {[%clk 0:02:50]} 6. Bg5 {[%clk 0:03:00]}  Bd7 {[%clk 0:02:49]} 7. Qd2 {[%clk 0:02:59]}  h6 {[%clk 0:02:37]} 8. Bh4 {[%clk 0:02:49]}  g5 {[%clk 0:02:37]} 9. Bg3 {[%clk 0:02:50]}  Bg7 {[%clk 0:02:32]} 10. h4 {[%clk 0:02:49]}  Nxd4 {[%clk 0:02:24]} 11. hxg5 {[%clk 0:02:27]}  Ng4 {[%clk 0:02:02]} 12. f3 {[%clk 0:01:47]}  Ne5 {[%clk 0:01:53]} 13. gxh6 {[%clk 0:01:46]}  Bf6 {[%clk 0:01:52]} 14. Nd5 {[%clk 0:01:40]}  Nexf3+ {[%clk 0:01:36]} 15. gxf3 {[%clk 0:01:35]}  Nxf3+ {[%clk 0:01:37]} 16. Kd1 {[%clk 0:01:30]}  Nxd2 {[%clk 0:01:36]} 17. Kxd2 {[%clk 0:01:31]}  Bg5+ {[%clk 0:01:35]} 18. Bf4 {[%clk 0:01:20]}  e6 {[%clk 0:01:35]} 19. Nc7+ {[%clk 0:01:16]}  Qxc7 {[%clk 0:01:33]} 20. Bxg5 {[%clk 0:01:17]}  Qc5 {[%clk 0:01:32]} 21. Bf6 {[%clk 0:01:12]}  Qf2+ {[%clk 0:01:32]} 0-1


[Site "https://www.chess.com"]

[Event "Titled Tuesday Blitz December 20 Early 2022"]
[White "AldokhinIvan"]
[Black "IronicSteal05"]
[WhiteElo "2572"]
[BlackElo "2245"]
[Result "1-0"]
[Round "01"]
[TimeControl "180+2"]
[Date "2022.12.20"]
[WhiteClock "0:01:50"]
[BlackClock "0:01:59"]

1. e4 {[%clk 0:02:56]}  c5 {[%clk 0:02:58]} 2. Nf3 {[%clk 0:02:57]}  d6 {[%clk 0:02:58]} 3. d4 {[%clk 0:02:57]}  cxd4 {[%clk 0:02:58]} 4. Nxd4 {[%clk 0:02:58]}  Nf6 {[%clk 0:02:59]} 5. Nc3 {[%clk 0:02:59]}  a6 {[%clk 0:02:59]} 6. Bc4 {[%clk 0:02:59]}  e6 {[%clk 0:02:58]} 7. Bb3 {[%clk 0:03:00]}  Nbd7 {[%clk 0:02:58]} 8. O-O {[%clk 0:02:56]}  Nc5 {[%clk 0:02:58]} 9. f4 {[%clk 0:02:54]}  Be7 {[%clk 0:02:59]} 10. e5 {[%clk 0:02:34]}  Nfd7 {[%clk 0:02:49]} 11. exd6 {[%clk 0:02:21]}  Bf6 {[%clk 0:02:44]} 12. f5 {[%clk 0:02:10]}  e5 {[%clk 0:02:44]} 13. Ne6 {[%clk 0:02:06]}  fxe6 {[%clk 0:02:28]} 14. Qh5+ {[%clk 0:01:56]}  Kf8 {[%clk 0:02:01]} 15. fxe6 {[%clk 0:01:55]}  Nxe6 {[%clk 0:01:59]} 16. Bxe6 {[%clk 0:01:52]}  Qb6+ {[%clk 0:01:59]} 17. Kh1 {[%clk 0:01:50]}  Qxd6 {[%clk 0:01:59]} 18. Qf7# {[%clk 0:01:50]} 1-0


[Site "https://www.chess.com"]

[Event "Titled Tuesday Blitz December 20 Early 2022"]
[White "Almaguer, Reynaldo"]
[Black "Benamar, Benious"]
[WhiteFideId "3503062"]
[BlackFideId "45118841"]
[WhiteElo "2163"]
[BlackElo "1136"]
[Result "0-1"]
[Round "01"]
[TimeControl "180+2"]
[Date "2022.12.20"]
[WhiteClock "0:00:13"]
[BlackClock "0:00:07"]

1. e4 {[%clk 0:02:59]}  d6 {[%clk 0:02:59]} 2. d4 {[%clk 0:02:50]}  Nf6 {[%clk 0:03:00]} 3. Nc3 {[%clk 0:02:49]}  c6 {[%clk 0:02:59]} 4. Bd3 {[%clk 0:02:46]}  e5 {[%clk 0:02:59]} 5. Nf3 {[%clk 0:02:44]}  Nbd7 {[%clk 0:02:59]} 6. Bg5 {[%clk 0:02:42]}  Be7 {[%clk 0:02:58]} 7. Qd2 {[%clk 0:02:42]}  O-O {[%clk 0:02:57]} 8. Rg1 {[%clk 0:02:34]}  b5 {[%clk 0:02:55]} 9. a3 {[%clk 0:02:32]}  Re8 {[%clk 0:02:54]} 10. d5 {[%clk 0:02:28]}  cxd5 {[%clk 0:02:50]} 11. Bxf6 {[%clk 0:02:22]}  Nxf6 {[%clk 0:02:47]} 12. Bxb5 {[%clk 0:02:21]}  d4 {[%clk 0:02:37]} 13. Nd5 {[%clk 0:02:11]}  Bd7 {[%clk 0:02:30]} 14. Nxf6+ {[%clk 0:01:58]}  Bxf6 {[%clk 0:02:30]} 15. Bc4 {[%clk 0:01:58]}  Rc8 {[%clk 0:02:24]} 16. Qd3 {[%clk 0:01:54]}  Qa5+ {[%clk 0:02:14]} 17. Nd2 {[%clk 0:01:46]}  Bg5 {[%clk 0:02:10]} 18. O-O-O {[%clk 0:01:44]}  Rc7 {[%clk 0:01:55]} 19. g3 {[%clk 0:01:27]}  Bg4 {[%clk 0:01:36]} 20. f4 {[%clk 0:01:17]}  Bxd1 {[%clk 0:01:24]} 21. fxg5 {[%clk 0:01:16]}  Bg4 {[%clk 0:01:24]} 22. Qb3 {[%clk 0:00:32]}  Qb6 {[%clk 0:01:02]} 23. Qxb6 {[%clk 0:00:22]}  axb6 {[%clk 0:01:03]} 24. Bd3 {[%clk 0:00:21]}  Be6 {[%clk 0:00:57]} 25. Kb1 {[%clk 0:00:21]}  d5 {[%clk 0:00:42]} 26. h3 {[%clk 0:00:21]}  dxe4 {[%clk 0:00:38]} 27. Bxe4 {[%clk 0:00:21]}  g6 {[%clk 0:00:28]} 28. g4 {[%clk 0:00:21]}  Kg7 {[%clk 0:00:28]} 29. h4 {[%clk 0:00:21]}  b5 {[%clk 0:00:18]} 30. Rf1 {[%clk 0:00:19]}  Rb8 {[%clk 0:00:17]} 31. h5 {[%clk 0:00:18]}  b4 {[%clk 0:00:11]} 32. axb4 {[%clk 0:00:19]}  Rxb4 {[%clk 0:00:11]} 33. h6+ {[%clk 0:00:19]}  Kf8 {[%clk 0:00:11]} 34. Rg1 {[%clk 0:00:20]}  Ke7 {[%clk 0:00:11]} 35. Kc1 {[%clk 0:00:20]}  Ra7 {[%clk 0:00:11]} 36. Nb1 {[%clk 0:00:18]}  Ra1 {[%clk 0:00:10]} 37. Bd3 {[%clk 0:00:19]}  Rb7 {[%clk 0:00:08]} 38. Kd2 {[%clk 0:00:19]}  Rxb2 {[%clk 0:00:08]} 39. Re1 {[%clk 0:00:13]}  Rbxb1 {[%clk 0:00:07]} 0-1


[Site "https://www.chess.com"]

[Event "Titled Tuesday Blitz December 20 Early 2022"]
[White "Artels, Lieven"]
[Black "Abundo, Casto"]
[WhiteFideId "205834"]
[BlackFideId "5200512"]
[WhiteElo "1984"]
[BlackElo "2175"]
[Result "0-1"]
[Round "01"]
[TimeControl "180+2"]
[Date "2022.12.20"]
[WhiteClock "0:00:04"]
[BlackClock "0:00:46"]

1. b4 {[%clk 0:02:59]}  d5 {[%clk 0:02:58]} 2. Bb2 {[%clk 0:02:58]}  Nf6 {[%clk 0:02:56]} 3. e3 {[%clk 0:02:58]}  Bg4 {[%clk 0:02:56]} 4. Nf3 {[%clk 0:02:56]}  Nbd7 {[%clk 0:02:55]} 5. c4 {[%clk 0:02:55]}  c6 {[%clk 0:02:53]} 6. a3 {[%clk 0:02:52]}  e5 {[%clk 0:02:52]} 7. Be2 {[%clk 0:02:51]}  Bd6 {[%clk 0:02:51]} 8. d4 {[%clk 0:02:50]}  Bxf3 {[%clk 0:02:28]} 9. Bxf3 {[%clk 0:02:47]}  e4 {[%clk 0:02:28]} 10. Be2 {[%clk 0:02:43]}  O-O {[%clk 0:02:25]} 11. O-O {[%clk 0:02:42]}  Qe7 {[%clk 0:02:26]} 12. c5 {[%clk 0:02:23]}  Bc7 {[%clk 0:02:25]} 13. Nd2 {[%clk 0:02:20]}  b5 {[%clk 0:02:19]} 14. Re1 {[%clk 0:02:18]}  h5 {[%clk 0:02:12]} 15. Nf1 {[%clk 0:02:16]}  g6 {[%clk 0:02:10]} 16. Ng3 {[%clk 0:02:11]}  Rfb8 {[%clk 0:02:09]} 17. h4 {[%clk 0:02:00]}  Nh7 {[%clk 0:02:00]} 18. Bc3 {[%clk 0:01:57]}  Qxh4 {[%clk 0:01:59]} 19. Bxh5 {[%clk 0:01:38]}  Bxg3 {[%clk 0:01:40]} 20. fxg3 {[%clk 0:01:34]}  Qxh5 {[%clk 0:01:40]} 21. Qxh5 {[%clk 0:01:29]}  gxh5 {[%clk 0:01:40]} 22. Rf1 {[%clk 0:01:28]}  Re8 {[%clk 0:01:25]} 23. Rf5 {[%clk 0:01:27]}  Ndf6 {[%clk 0:01:24]} 24. Raf1 {[%clk 0:01:24]}  Re6 {[%clk 0:01:24]} 25. R1f4 {[%clk 0:01:07]}  a6 {[%clk 0:01:23]} 26. Rh4 {[%clk 0:01:05]}  Kh8 {[%clk 0:01:22]} 27. Kh2 {[%clk 0:00:56]}  Rg8 {[%clk 0:01:21]} 28. Be1 {[%clk 0:00:51]}  Rg4 {[%clk 0:01:11]} 29. Kh3 {[%clk 0:00:45]}  Ng5+ {[%clk 0:01:05]} 30. Kh2 {[%clk 0:00:43]}  Kg7 {[%clk 0:01:05]} 31. Kg1 {[%clk 0:00:33]}  Kg6 {[%clk 0:01:04]} 32. Rf4 {[%clk 0:00:30]}  Rxh4 {[%clk 0:00:45]} 33. gxh4 {[%clk 0:00:29]}  Ngh7 {[%clk 0:00:44]} 34. Bg3 {[%clk 0:00:29]}  Ng4 {[%clk 0:00:44]} 35. Kf1 {[%clk 0:00:23]}  Nxe3+ {[%clk 0:00:44]} 36. Ke2 {[%clk 0:00:22]}  Nc4 {[%clk 0:00:44]} 37. Be1 {[%clk 0:00:11]}  Rf6 {[%clk 0:00:42]} 38. Rxf6+ {[%clk 0:00:10]}  Nxf6 {[%clk 0:00:42]} 39. Bd2 {[%clk 0:00:10]}  Nxa3 {[%clk 0:00:42]} 40. Bc3 {[%clk 0:00:10]}  Nc4 {[%clk 0:00:42]} 41. g3 {[%clk 0:00:08]}  Kf5 {[%clk 0:00:42]} 42. Be1 {[%clk 0:00:07]}  Kg4 {[%clk 0:00:43]} 43. Kf2 {[%clk 0:00:07]}  Ne8 {[%clk 0:00:43]} 44. Kg2 {[%clk 0:00:07]}  Ng7 {[%clk 0:00:43]} 45. Bf2 {[%clk 0:00:06]}  Nf5 {[%clk 0:00:44]} 46. Be1 {[%clk 0:00:07]}  Nfe3+ {[%clk 0:00:45]} 47. Kf2 {[%clk 0:00:06]}  Nc2 {[%clk 0:00:45]} 48. Kf1 {[%clk 0:00:05]}  f5 {[%clk 0:00:45]} 49. Bf2 {[%clk 0:00:04]}  Nxb4 {[%clk 0:00:45]} 50. Kg2 {[%clk 0:00:05]}  Nc2 {[%clk 0:00:46]} 51. Kf1 {[%clk 0:00:04]}  a5 {[%clk 0:00:46]} 0-1


[Site "https://www.chess.com"]

[Event "Titled Tuesday Blitz December 20 Early 2022"]
[White "AsaHoffmann"]
[Black "FaustinoOro"]
[WhiteElo "2376"]
[BlackElo "2633"]
[Result "0-1"]
[Round "01"]
[TimeControl "180+2"]
[Date "2022.12.20"]
[WhiteClock "0:00:03"]
[BlackClock "0:00:02"]

1. d4 {[%clk 0:02:54]}  Nf6 {[%clk 0:02:59]} 2. Bg5 {[%clk 0:02:51]}  e6 {[%clk 0:02:54]} 3. Nd2 {[%clk 0:02:50]}  h6 {[%clk 0:02:53]} 4. Bh4 {[%clk 0:02:50]}  d5 {[%clk 0:02:54]} 5. e3 {[%clk 0:02:49]}  Be7 {[%clk 0:02:54]} 6. Bd3 {[%clk 0:02:49]}  c5 {[%clk 0:02:53]} 7. c3 {[%clk 0:02:49]}  O-O {[%clk 0:02:54]} 8. f4 {[%clk 0:02:49]}  cxd4 {[%clk 0:02:51]} 9. exd4 {[%clk 0:02:48]}  Bd6 {[%clk 0:02:42]} 10. Nh3 {[%clk 0:02:43]}  Nbd7 {[%clk 0:02:33]} 11. O-O {[%clk 0:02:42]}  Qc7 {[%clk 0:02:30]} 12. Qf3 {[%clk 0:02:23]}  Nb6 {[%clk 0:01:56]} 13. g4 {[%clk 0:02:13]}  Nc4 {[%clk 0:01:41]} 14. Nxc4 {[%clk 0:02:07]}  dxc4 {[%clk 0:01:40]} 15. Bc2 {[%clk 0:02:07]}  Nd5 {[%clk 0:01:31]} 16. g5 {[%clk 0:01:57]}  Be7 {[%clk 0:01:15]} 17. Qh5 {[%clk 0:01:48]}  f5 {[%clk 0:00:38]} 18. gxh6 {[%clk 0:01:39]}  Bxh4 {[%clk 0:00:37]} 19. Qxh4 {[%clk 0:01:32]}  Rf6 {[%clk 0:00:37]} 20. h7+ {[%clk 0:01:20]}  Kh8 {[%clk 0:00:35]} 21. Ng5 {[%clk 0:01:11]}  Bd7 {[%clk 0:00:29]} 22. Rae1 {[%clk 0:01:09]}  Raf8 {[%clk 0:00:27]} 23. Rf3 {[%clk 0:01:07]}  Rh6 {[%clk 0:00:24]} 24. Qg3 {[%clk 0:01:06]}  Qd6 {[%clk 0:00:20]} 25. Re5 {[%clk 0:01:04]}  Bc6 {[%clk 0:00:20]} 26. Rf2 {[%clk 0:00:53]}  Ne7 {[%clk 0:00:15]} 27. Rfe2 {[%clk 0:00:50]}  Bd5 {[%clk 0:00:14]} 28. Rf2 {[%clk 0:00:37]}  Ng6 {[%clk 0:00:14]} 29. Bd1 {[%clk 0:00:35]}  Nxe5 {[%clk 0:00:13]} 30. fxe5 {[%clk 0:00:34]}  Qe7 {[%clk 0:00:13]} 31. h4 {[%clk 0:00:34]}  b5 {[%clk 0:00:11]} 32. Bf3 {[%clk 0:00:33]}  Qd7 {[%clk 0:00:10]} 33. Qf4 {[%clk 0:00:30]}  Bxf3 {[%clk 0:00:10]} 34. Rxf3 {[%clk 0:00:28]}  Qd5 {[%clk 0:00:10]} 35. Kf2 {[%clk 0:00:28]}  a5 {[%clk 0:00:08]} 36. Kg3 {[%clk 0:00:28]}  b4 {[%clk 0:00:09]} 37. Qd2 {[%clk 0:00:21]}  Qb5 {[%clk 0:00:04]} 38. Nh3 {[%clk 0:00:18]}  b3 {[%clk 0:00:05]} 39. a3 {[%clk 0:00:18]}  Rxh7 {[%clk 0:00:04]} 40. Nf4 {[%clk 0:00:18]}  Rh6 {[%clk 0:00:05]} 41. h5 {[%clk 0:00:17]}  Kh7 {[%clk 0:00:04]} 42. Kh4 {[%clk 0:00:14]}  Qe8 {[%clk 0:00:03]} 43. Rg3 {[%clk 0:00:11]}  Qe7+ {[%clk 0:00:03]} 44. Rg5 {[%clk 0:00:11]}  Qe8 {[%clk 0:00:03]} 45. Qg2 {[%clk 0:00:11]}  Rf7 {[%clk 0:00:03]} 46. Rg6 {[%clk 0:00:09]}  Rd7 {[%clk 0:00:03]} 47. Rxh6+ {[%clk 0:00:08]}  gxh6 {[%clk 0:00:04]} 48. Qg6+ {[%clk 0:00:07]}  Qxg6 {[%clk 0:00:03]} 49. hxg6+ {[%clk 0:00:07]}  Kg8 {[%clk 0:00:03]} 50. Nxe6 {[%clk 0:00:05]}  Re7 {[%clk 0:00:02]} 51. Nf4 {[%clk 0:00:05]}  Kg7 {[%clk 0:00:01]} 52. Kh5 {[%clk 0:00:03]}  Re8 {[%clk 0:00:02]} 53. e6 {[%clk 0:00:03]}  Kf6 {[%clk 0:00:02]} 54. d5 {[%clk 0:00:03]}  Ke5 {[%clk 0:00:02]} 0-1


[Site "https://www.chess.com"]

[Event "Titled Tuesday Blitz December 20 Early 2022"]
[White "AwareIdea"]
[Black "tortorchess"]
[WhiteElo "2513"]
[BlackElo "1836"]
[Result "1-0"]
[Round "01"]
[TimeControl "180+2"]
[Date "2022.12.20"]
[WhiteClock "0:00:46"]
[BlackClock "0:00:17"]

1. d4 {[%clk 0:02:59]}  d5 {[%clk 0:02:59]} 2. c4 {[%clk 0:02:59]}  c6 {[%clk 0:02:58]} 3. Nf3 {[%clk 0:02:58]}  Nf6 {[%clk 0:02:57]} 4. e3 {[%clk 0:02:58]}  g6 {[%clk 0:02:57]} 5. Nc3 {[%clk 0:02:57]}  Bg7 {[%clk 0:02:57]} 6. Be2 {[%clk 0:02:57]}  O-O {[%clk 0:02:57]} 7. O-O {[%clk 0:02:57]}  Bg4 {[%clk 0:02:57]} 8. Qb3 {[%clk 0:02:55]}  Qb6 {[%clk 0:02:49]} 9. h3 {[%clk 0:02:53]}  Bxf3 {[%clk 0:02:47]} 10. Bxf3 {[%clk 0:02:54]}  e6 {[%clk 0:02:47]} 11. Rd1 {[%clk 0:02:49]}  Nbd7 {[%clk 0:02:46]} 12. Qc2 {[%clk 0:02:41]}  Rac8 {[%clk 0:02:45]} 13. e4 {[%clk 0:02:37]}  dxe4 {[%clk 0:02:44]} 14. Nxe4 {[%clk 0:02:38]}  Nxe4 {[%clk 0:02:42]} 15. Qxe4 {[%clk 0:02:38]}  Nf6 {[%clk 0:02:41]} 16. Qc2 {[%clk 0:02:36]}  Rfd8 {[%clk 0:02:40]} 17. Be3 {[%clk 0:02:35]}  Qc7 {[%clk 0:02:37]} 18. Rac1 {[%clk 0:02:31]}  Rd7 {[%clk 0:02:36]} 19. Qa4 {[%clk 0:02:25]}  a6 {[%clk 0:02:33]} 20. d5 {[%clk 0:02:23]}  exd5 {[%clk 0:02:30]} 21. cxd5 {[%clk 0:02:23]}  Rcd8 {[%clk 0:02:02]} 22. dxc6 {[%clk 0:02:16]}  Rxd1+ {[%clk 0:02:01]} 23. Bxd1 {[%clk 0:02:07]}  bxc6 {[%clk 0:01:51]} 24. Bf3 {[%clk 0:02:07]}  Nd5 {[%clk 0:01:35]} 25. Bd4 {[%clk 0:01:54]}  Qf4 {[%clk 0:01:28]} 26. Rc4 {[%clk 0:01:45]}  Bxd4 {[%clk 0:01:19]} 27. Rxd4 {[%clk 0:01:46]}  Qc1+ {[%clk 0:01:18]} 28. Rd1 {[%clk 0:01:28]}  Qxb2 {[%clk 0:01:17]} 29. Qxc6 {[%clk 0:01:24]}  Kg7 {[%clk 0:00:50]} 30. Bxd5 {[%clk 0:01:09]}  Qe2 {[%clk 0:00:46]} 31. Qc3+ {[%clk 0:01:06]}  Kf8 {[%clk 0:00:42]} 32. Re1 {[%clk 0:00:56]}  Qxe1+ {[%clk 0:00:24]} 33. Qxe1 {[%clk 0:00:57]}  Rxd5 {[%clk 0:00:24]} 34. Qc3 {[%clk 0:00:54]}  Rd1+ {[%clk 0:00:23]} 35. Kh2 {[%clk 0:00:54]}  Kg8 {[%clk 0:00:22]} 36. Qc8+ {[%clk 0:00:52]}  Kg7 {[%clk 0:00:21]} 37. Qxa6 {[%clk 0:00:53]}  Rd2 {[%clk 0:00:21]} 38. Kg3 {[%clk 0:00:52]}  Rb2 {[%clk 0:00:20]} 39. Qc4 {[%clk 0:00:47]}  Rb7 {[%clk 0:00:17]} 40. a4 {[%clk 0:00:46]}  Ra7 {[%clk 0:00:17]} 41. Qd4+ {[%clk 0:00:46]} 1-0


[Site "https://www.chess.com"]

[Event "Titled Tuesday Blitz December 20 Early 2022"]
[White "Aza, Saulo"]
[Black "Groz, Jacky"]
[WhiteFideId "4410394"]
[BlackFideId "626643"]
[WhiteElo "1667"]
[BlackElo "2052"]
[Result "0-1"]
[Round "01"]
[TimeControl "180+2"]
[Date "2022.12.20"]
[WhiteClock "0:01:14"]
[BlackClock "0:01:27"]

1. d4 {[%clk 0:02:57]}  Nf6 {[%clk 0:02:56]} 2. c4 {[%clk 0:02:57]}  e6 {[%clk 0:02:49]} 3. Nc3 {[%clk 0:02:57]}  Bb4 {[%clk 0:02:47]} 4. a3 {[%clk 0:02:57]}  Bxc3+ {[%clk 0:02:45]} 5. bxc3 {[%clk 0:02:57]}  c5 {[%clk 0:02:46]} 6. e3 {[%clk 0:02:57]}  O-O {[%clk 0:02:45]} 7. Bd3 {[%clk 0:02:57]}  d5 {[%clk 0:02:39]} 8. cxd5 {[%clk 0:02:55]}  exd5 {[%clk 0:02:38]} 9. Ne2 {[%clk 0:02:55]}  b6 {[%clk 0:02:37]} 10. O-O {[%clk 0:02:55]}  Ba6 {[%clk 0:02:37]} 11. f3 {[%clk 0:02:52]}  Re8 {[%clk 0:02:33]} 12. Bxa6 {[%clk 0:02:50]}  Nxa6 {[%clk 0:02:33]} 13. Qd3 {[%clk 0:02:50]}  Nc7 {[%clk 0:02:33]} 14. Ng3 {[%clk 0:02:49]}  Qd7 {[%clk 0:02:27]} 15. a4 {[%clk 0:02:43]}  Ne6 {[%clk 0:02:23]} 16. Bb2 {[%clk 0:02:41]}  a6 {[%clk 0:02:20]} 17. Nf5 {[%clk 0:02:30]}  g6 {[%clk 0:02:18]} 18. Ng3 {[%clk 0:02:29]}  b5 {[%clk 0:02:15]} 19. e4 {[%clk 0:02:23]}  bxa4 {[%clk 0:02:01]} 20. e5 {[%clk 0:02:21]}  Nf4 {[%clk 0:02:01]} 21. Qd2 {[%clk 0:02:19]}  N6h5 {[%clk 0:02:00]} 22. Nxh5 {[%clk 0:02:04]}  Nxh5 {[%clk 0:02:01]} 23. g4 {[%clk 0:02:03]}  Ng7 {[%clk 0:02:00]} 24. h3 {[%clk 0:02:02]}  cxd4 {[%clk 0:01:57]} 25. cxd4 {[%clk 0:02:01]}  Rab8 {[%clk 0:01:57]} 26. Ba3 {[%clk 0:02:01]}  Rb3 {[%clk 0:01:55]} 27. Kg2 {[%clk 0:01:57]}  Ne6 {[%clk 0:01:50]} 28. f4 {[%clk 0:01:55]}  Qa7 {[%clk 0:01:37]} 29. f5 {[%clk 0:01:50]}  Qxd4 {[%clk 0:01:33]} 30. Qxd4 {[%clk 0:01:41]}  Nxd4 {[%clk 0:01:33]} 31. Bd6 {[%clk 0:01:40]}  Nc2 {[%clk 0:01:31]} 32. Rxa4 {[%clk 0:01:31]}  Ne3+ {[%clk 0:01:31]} 33. Kf2 {[%clk 0:01:30]}  Nxf1 {[%clk 0:01:30]} 34. Kxf1 {[%clk 0:01:30]}  gxf5 {[%clk 0:01:30]} 35. Rxa6 {[%clk 0:01:17]}  Rxh3 {[%clk 0:01:28]} 36. Kg2 {[%clk 0:01:15]}  fxg4 {[%clk 0:01:28]} 37. Ra4 {[%clk 0:01:14]}  h5 {[%clk 0:01:27]} 0-1


[Site "https://www.chess.com"]

[Event "Titled Tuesday Blitz December 20 Early 2022"]
[White "Azoulas, Mark"]
[Black "Makswolf200817"]
[WhiteFideId "2033208"]
[WhiteElo "2326"]
[BlackElo "2651"]
[Result "0-1"]
[Round "01"]
[TimeControl "180+2"]
[Date "2022.12.20"]
[WhiteClock "0:02:25"]
[BlackClock "0:01:43"]

1. e4 {[%clk 0:02:59]}  c5 {[%clk 0:02:52]} 2. Nc3 {[%clk 0:02:58]}  d6 {[%clk 0:02:51]} 3. d4 {[%clk 0:02:57]}  cxd4 {[%clk 0:02:51]} 4. Qxd4 {[%clk 0:02:58]}  Nc6 {[%clk 0:02:51]} 5. Qd2 {[%clk 0:02:56]}  g6 {[%clk 0:02:51]} 6. b3 {[%clk 0:02:53]}  Bh6 {[%clk 0:02:51]} 7. f4 {[%clk 0:02:50]}  e5 {[%clk 0:02:50]} 8. g3 {[%clk 0:02:49]}  Nf6 {[%clk 0:02:49]} 9. Bb2 {[%clk 0:02:47]}  O-O {[%clk 0:02:45]} 10. O-O-O {[%clk 0:02:46]}  Bg4 {[%clk 0:02:44]} 11. Be2 {[%clk 0:02:43]}  Nd4 {[%clk 0:02:19]} 12. Bxg4 {[%clk 0:02:40]}  Nxg4 {[%clk 0:02:20]} 13. h3 {[%clk 0:02:31]}  Nf6 {[%clk 0:02:16]} 14. Nge2 {[%clk 0:02:28]}  Nxe2+ {[%clk 0:02:12]} 15. Nxe2 {[%clk 0:02:28]}  Nxe4 {[%clk 0:02:11]} 16. Qe3 {[%clk 0:02:25]}  Nf6 {[%clk 0:01:43]} 0-1


[Site "https://www.chess.com"]